bitfinex/quotes_ETHUSD_20241030
["timestamp","ask_amount","ask_price","bid_price","bid_amount"]
[1730315886399,3.75537,2662.9,2662.6,0.1590983]
[1730315886606,3.75516,2663.0,2662.6,0.1590983]
[1730315886910,3.75489,2663.2,2662.7,3.75551]
[1730315887315,3.7551,2663.1,2662.6,0.1590983]
[1730315887504,3.755,2663.2,2662.7,3.75558]
[1730315887707,3.75507,2663.1,2662.7,3.75558]
[1730315888384,3.75507,2663.1,2662.6,3.9148183]
[1730315889234,3.75507,2663.1,2662.5,3.76073]
[1730315889235,8.14932,2662.6,2662.5,0.005]
[1730315889381,7.59932,2662.6,2662.5,0.005]
[1730315891023,7.58932,2662.6,2662.5,0.005]
[1730315891491,7.57932,2662.6,2662.5,0.005]
[1730315893630,7.58932,2662.6,2662.5,0.005]
[1730315893806,7.59932,2662.6,2662.5,0.005]
[1730315894181,7.59932,2662.6,2662.5,1e-05]
[1730315894408,8.14932,2662.6,2662.5,1e-05]
[1730315895569,0.01,2662.3,2662.0,3.95e-06]
[1730315895756,11.19379511,2662.1,2662.0,3.95e-06]
[1730315896046,11.18379511,2662.1,2662.0,3.95e-06]
[1730315899852,8.18379511,2662.1,2662.0,3.95e-06]
[1730315901652,11.75379511,2662.1,2662.0,3.95e-06]
[1730315903072,11.74379511,2662.1,2662.0,3.95e-06]
[1730315903368,8.18379511,2662.1,2662.0,3.95e-06]
[1730315904230,7.38699511,2662.1,2662.0,3.95e-06]
[1730315905131,8.20849511,2662.1,2662.0,3.95e-06]
[1730315905619,8.76849511,2662.1,2662.0,3.95e-06]
[1730315905732,8.21849511,2662.1,2662.0,3.95e-06]
[1730315906068,8.20849511,2662.1,2662.0,3.95e-06]
[1730315908763,8.20849511,2662.1,2662.0,0.09810979]
[1730315908964,8.20849511,2662.1,2662.0,3.95e-06]
[1730315910598,6.63056511,2662.4,2662.0,3.95e-06]
[1730315910777,3.75622,2662.3,2662.0,3.95e-06]
[1730315910987,6.75602,2662.4,2662.1,0.09800948]
[1730315911494,3.75617,2662.3,2662.1,0.09800948]
[1730315911990,3.0,2662.4,2662.1,0.09800948]
[1730315911991,6.75602,2662.4,2662.1,0.09800948]
[1730315912174,3.7558,2662.6,2662.1,0.09800948]
[1730315912366,3.75589,2662.5,2662.1,0.09800948]
[1730315913150,3.63056511,2662.7,2662.1,0.09800948]
[1730315913302,7.51161,2662.6,2662.2,0.7537]
[1730315913592,3.75579,2662.6,2662.2,0.85159423]
[1730315913800,7.51162,2662.6,2662.2,0.85159423]
[1730315914176,3.75579,2662.6,2662.2,0.85159423]
[1730315914567,7.51164,2662.6,2662.2,0.85159423]
[1730315914757,3.75587,2662.5,2662.2,0.85159423]
[1730315916188,3.75567,2662.7,2662.2,0.85159423]
[1730315916387,3.7559,2662.5,2662.2,0.85159423]
[1730315917287,3.75602,2662.4,2662.2,0.85159423]
[1730315917671,3.75615,2662.3,2662.2,0.09789423]
[1730315917891,3.75615,2662.3,2662.0,0.82740395]
[1730315918173,0.7929,2662.6,2662.2,0.09781355]
[1730315918392,3.75615,2662.3,2662.2,0.09781355]
[1730315918811,3.75643,2662.1,2662.0,3.95e-06]
[1730315919505,3.75643,2662.1,2662.0,0.0980095]
[1730315922493,3.75643,2662.1,2662.0,3.24e-06]
[1730315922682,4.51403,2662.1,2662.0,3.24e-06]
[1730315930312,3.75643,2662.1,2662.0,3.24e-06]
[1730315930631,3.75643,2662.1,2662.0,0.09798933]
[1730315930807,3.75643,2662.1,2662.0,3.24e-06]
[1730315930997,3.75643,2662.1,2662.0,0.09798933]
[1730315931199,3.75643,2662.1,2662.0,3.24e-06]
[1730315931400,3.75643,2662.1,2662.0,0.09798933]
[1730315931963,3.75643,2662.1,2662.0,3.24e-06]
[1730315933957,7.39699511,2662.1,2662.0,3.24e-06]
[1730315934354,7.38699511,2662.1,2662.0,3.24e-06]
[1730315934661,7.39699511,2662.1,2662.0,3.24e-06]
[1730315935031,3.75643,2662.1,2662.0,3.24e-06]
[1730315935869,3.75643,2662.1,2662.0,0.09798933]
[1730315940764,3.75643,2662.1,2662.0,3.24e-06]
[1730315942002,5.13493,2662.1,2662.0,3.24e-06]
[1730315942284,4.58493,2662.1,2662.0,3.24e-06]
[1730315943656,8.21549511,2662.1,2662.0,3.24e-06]
[1730315946491,4.57493,2662.1,2662.0,3.24e-06]
[1730315946667,3.75643,2662.1,2662.0,0.09809015]
[1730315946871,3.75643,2662.1,2662.0,3.24e-06]
[1730315947757,3.75643,2662.1,2662.0,0.09808637]
[1730315953084,7.42536511,2662.7,2662.0,0.09808637]
[1730315953254,3.75629,2662.2,2662.1,0.8315]
[1730315953596,3.75629,2662.2,2662.1,0.92944266]
[1730315953962,3.75615,2662.3,2662.1,0.92944266]
[1730315954456,3.75592,2662.5,2662.1,0.92944266]
[1730315954680,3.75558,2662.7,2662.1,0.92944266]
[1730315955007,3.75618,2662.3,2662.1,0.92944266]
[1730315955293,3.75602,2662.4,2662.1,0.92944266]
[1730315955594,3.75579,2662.6,2662.1,0.92944266]
[1730315955800,3.756,2662.5,2662.1,0.92944266]
[1730315956096,7.51197,2662.5,2662.1,1.71270167]
[1730315956498,3.75609,2662.4,2662.1,1.71270167]
[1730315956805,3.75609,2662.4,2662.1,0.92944266]
[1730315958072,3.75597,2662.5,2662.1,0.92944266]
[1730315958370,3.7554,2662.9,2662.4,0.8198]
[1730315958572,3.7555,2662.8,2662.5,0.8198]
[1730315958890,3.7555,2662.8,2662.5,0.91731571]
[1730315959272,3.75572,2662.6,2662.5,0.91731571]
[1730315959655,3.75572,2662.6,2662.5,0.09751571]
[1730315959869,5.38176041,2662.7,2662.2,1.1283]
[1730315960100,3.75615,2662.3,2662.2,1.1283]
[1730315960804,3.75602,2662.4,2662.2,1.1283]
[1730315966689,3.75589,2662.5,2662.2,1.1283]
[1730315967205,3.75584,2662.6,2662.2,1.1283]
[1730315968081,3.75583,2662.6,2662.2,1.1283]
[1730315968289,7.51167,2662.6,2662.2,1.1283]
[1730315968498,3.75583,2662.6,2662.2,1.1283]
[1730315968676,3.75564,2662.7,2662.3,0.7618]
[1730315969989,6.15520041,2663.1,2662.3,0.7618]
[1730315970312,3.75565,2662.7,2662.3,0.7618]
[1730315970468,7.51132,2662.7,2662.3,0.7618]
[1730315970670,3.75565,2662.7,2662.3,0.7618]
[1730315971083,3.75565,2662.7,2662.4,0.09750996]
[1730315971296,7.51131,2662.7,2662.4,0.09750996]
[1730315971680,3.75565,2662.7,2662.4,0.09750996]
[1730315972207,3.75575,2662.6,2662.4,0.09750996]
[1730315973403,3.75565,2662.7,2662.4,0.09750996]
[1730315973594,7.51131,2662.7,2662.4,0.09750996]
[1730315975069,0.01,2663.5,2662.4,0.09750996]
[1730315975070,3.75586,2662.5,2662.4,0.09750996]
[1730315975496,3.75639,2662.2,2662.0,0.76960324]
[1730315975728,3.75643,2662.1,2662.0,0.76960324]
[1730315979126,3.75643,2662.1,2662.0,3.24e-06]
[1730315980001,4.5251278,2662.1,2662.0,3.24e-06]
[1730315980752,3.7556278,2662.1,2662.0,3.24e-06]
[1730315981321,3.0,2662.7,2662.0,3.24e-06]
[1730315981322,3.75596,2662.5,2662.0,6.51313365]
[1730315981505,3.75596,2662.5,2662.1,0.65131337]
[1730315981698,3.75596,2662.5,2662.2,0.09773035]
[1730315981894,3.75573,2662.6,2662.3,0.7555]
[1730315982104,7.51153,2662.6,2662.4,0.09753767]
[1730315982286,3.75573,2662.6,2662.4,0.09753767]
[1730315982686,2.38288041,2662.9,2662.4,0.09753767]
[1730315983002,3.75573,2662.6,2662.4,0.09753767]
[1730315983314,3.75559,2662.7,2662.4,0.55846744]
[1730315984386,3.75546,2662.8,2662.4,0.55846744]
[1730315984592,3.75546,2662.8,2662.5,0.7736]
[1730315984833,3.75537,2662.9,2662.6,0.50879574]
[1730315985235,3.75537,2662.9,2662.7,0.09721092]
[1730315985405,3.75495,2663.2,2662.8,0.8007]
[1730315985755,3.75518,2663.0,2662.8,0.89781462]
[1730315985935,3.75485,2663.3,2662.8,0.89781462]
[1730315986248,3.75453,2663.5,2662.8,5.07225304]
[1730315986409,3.75439,2663.6,2663.0,3.75516]
[1730315986606,0.805,2664.1,2663.3,4.54666]
[1730315986832,3.75411,2663.8,2663.3,4.54666]
[1730315987044,3.75411,2663.8,2663.4,0.09646512]
[1730315987278,7.50768,2664.0,2663.4,4.69082763]
[1730315987568,3.75399,2663.9,2663.5,0.7953]
[1730315987692,3.75399,2663.9,2663.5,0.89166635]
[1730315988340,3.75383,2664.0,2663.5,0.89166635]
[1730315988491,3.75391,2663.9,2663.5,0.89166635]
[1730315988693,3.75391,2663.9,2663.5,1.44026824]
[1730315989830,3.75378,2664.0,2663.5,5.19464824]
[1730315991231,7.50764,2664.0,2663.5,5.19464824]
[1730315991533,3.75378,2664.0,2663.5,5.19464824]
[1730315991738,7.50761,2664.0,2663.5,5.19464824]
[1730315992048,7.50761,2664.0,2663.6,0.97889008]
[1730315992246,3.75431,2663.6,2663.5,0.89166635]
[1730315992408,3.75464,2663.4,2663.2,0.7906]
[1730315993331,3.75464,2663.4,2663.2,1.23305489]
[1730315995850,7.50877,2663.6,2663.2,1.23305489]
[1730315996358,3.75446,2663.5,2663.2,1.23305489]
[1730315996651,3.75433,2663.6,2663.2,1.23305489]
[1730315996808,0.7594,2663.9,2663.2,1.23305489]
[1730315997154,3.75427,2663.7,2663.2,4.98792489]
[1730315997309,3.75427,2663.7,2663.3,0.49879249]
[1730315998222,7.50856,2663.7,2663.3,0.49879249]
[1730315998407,3.75427,2663.7,2663.3,0.49879249]
[1730315998608,3.75426,2663.7,2663.3,0.49879249]
[1730315998850,3.75439,2663.6,2663.3,0.49879249]
[1730315999012,3.75418,2663.7,2663.3,0.49879249]
[1730315999207,3.7544,2663.6,2663.3,0.49879249]
[1730315999644,3.75418,2663.7,2663.3,0.49879249]
[1730315999851,3.75403,2663.8,2663.4,0.54867174]
[1730316000048,3.7537,2664.1,2663.6,3.75428]
[1730316000756,7.50744,2664.1,2663.6,3.75428]
[1730316001211,3.75392,2663.9,2663.7,0.09594211]
[1730316001411,3.75429,2663.7,2663.5,0.7902]
[1730316001747,3.75426,2663.7,2663.3,4.88941]
[1730316002053,3.75435,2663.6,2663.4,0.53318649]
[1730316002617,3.75426,2663.7,2663.4,0.53318649]
[1730316002914,3.75399,2663.9,2663.4,0.53318649]
[1730316002915,3.7541,2663.8,2663.4,0.53318649]
[1730316003225,3.7541,2663.8,2663.5,0.54224965]
[1730316004062,3.75375,2664.0,2663.6,3.75431]
[1730316004352,3.75375,2664.0,2663.7,0.7859]
[1730316005037,3.75393,2663.9,2663.7,0.7859]
[1730316005551,3.75364,2664.1,2663.7,1.29415996]
[1730316006047,3.75364,2664.1,2663.2,0.7849]
[1730316006048,3.75431,2663.6,2663.2,0.7849]
[1730316006252,3.75467,2663.4,2663.2,0.7849]
[1730316007086,3.75467,2663.4,2662.9,0.3749]
[1730316007087,3.7547,2663.4,2663.0,0.8162]
[1730316007454,3.75474,2663.3,2663.0,0.8162]
[1730316007673,3.75501,2663.2,2663.0,1.31084]
[1730316007873,3.75501,2663.2,2663.0,0.8162]
[1730316008078,3.75502,2663.1,2663.0,0.8162]
[1730316008262,4.55584,2663.6,2662.7,3.63394894]
[1730316008263,3.75539,2662.9,2662.7,0.8044]
[1730316008470,3.7557,2662.7,2662.5,0.8044]
[1730316008670,3.7557,2662.7,2662.5,1.24823489]
[1730316008864,7.51139,2662.7,2662.5,1.24823489]
[1730316009187,3.75569,2662.7,2662.5,1.24823489]
[1730316009349,3.75569,2662.7,2662.6,0.3749]
[1730316009981,3.75546,2662.8,2662.6,0.3749]
[1730316010187,3.7553,2662.9,2662.6,0.3749]
[1730316010351,3.7553,2662.9,2662.6,0.90130738]
[1730316010813,3.75535,2662.9,2662.6,0.90130738]
[1730316011293,3.75517,2663.0,2662.6,0.90130738]
[1730316012992,3.75545,2662.8,2662.6,0.90130738]
[1730316013365,3.75558,2662.7,2662.5,0.8044]
[1730316014452,3.7546,2663.4,2662.0,3.76649324]
[1730316014453,4.5101,2662.6,2662.0,3.75655324]
[1730316014798,3.7558,2662.6,2662.0,3.24e-06]
[1730316014956,3.75595,2662.5,2662.0,3.75655324]
[1730316015157,3.75595,2662.5,2662.1,1.12990732]
[1730316015359,3.7558,2662.6,2662.1,1.12990732]
[1730316015681,3.75592,2662.5,2662.1,4.88632732]
[1730316015992,3.75586,2662.5,2662.2,0.0974394]
[1730316016166,3.75609,2662.4,2662.2,0.0974394]
[1730316016563,3.75615,2662.3,2662.2,0.0974394]
[1730316016769,3.75639,2662.2,2662.0,3.24e-06]
[1730316016990,7.51241,2662.3,2662.2,0.09746081]
[1730316017291,3.75639,2662.2,2662.0,3.24e-06]
[1730316018560,7.51281,2662.2,2662.0,3.24e-06]
[1730316018892,3.75639,2662.2,2662.0,3.24e-06]
[1730316019388,3.75616,2662.3,2662.0,3.24e-06]
[1730316019569,3.75616,2662.3,2662.0,0.45426256]
[1730316020383,3.75583,2662.6,2662.1,3.75636]
[1730316020657,3.75583,2662.6,2662.2,3.75621]
[1730316020858,3.75583,2662.6,2662.3,0.8075]
[1730316021859,3.75498,2663.2,2662.8,0.7651]
[1730316022060,0.7841,2663.5,2662.8,0.7651]
[1730316022061,3.7553,2662.9,2662.8,0.7651]
[1730316022287,3.75532,2662.9,2662.4,4.52105]
[1730316022589,3.75532,2662.9,2662.4,0.7651]
[1730316022783,3.75552,2662.8,2662.4,1.58060689]
[1730316022979,7.51072,2662.9,2662.4,5.33660689]
[1730316023202,3.75532,2662.9,2662.4,5.33660689]
[1730316023402,3.75546,2662.8,2662.4,1.58060689]
[1730316023774,3.75546,2662.8,2662.3,3.75606]
[1730316023775,3.75588,2662.5,2662.2,0.7651]
[1730316023986,3.75601,2662.4,2662.2,0.7651]
[1730316024282,3.75608,2662.4,2662.0,3.24e-06]
[1730316024485,3.75623,2662.3,2662.0,3.24e-06]
[1730316024989,3.75643,2662.1,2662.0,3.24e-06]
[1730316025995,3.7563,2662.2,2662.0,3.24e-06]
[1730316028374,3.75616,2662.3,2662.0,3.24e-06]
[1730316028676,3.7558,2662.6,2662.1,4.58226]
[1730316028875,3.7558,2662.6,2662.1,8.79682632]
[1730316029271,3.7558,2662.6,2662.1,5.04046632]
[1730316029511,3.7558,2662.6,2662.2,3.75624]
[1730316029709,3.7558,2662.6,2662.1,5.04046632]
[1730316029914,3.7558,2662.6,2662.2,0.50404696]
[1730316031211,3.7558,2662.6,2662.3,0.09754582]
[1730316031412,3.7558,2662.6,2662.2,0.50404696]
[1730316031576,3.75555,2662.8,2662.3,0.09754582]
[1730316031773,0.2992,2662.7,2662.4,0.7917]
[1730316031978,0.2992,2662.7,2662.5,0.09734938]
[1730316032280,0.2992,2662.7,2662.5,0.14441202]
[1730316032773,0.2992,2662.7,2662.5,3.90024202]
[1730316032981,0.2992,2662.7,2662.6,3.75572]
[1730316033199,0.2992,2662.7,2662.5,3.75584]
[1730316033400,0.2992,2662.7,2662.6,4.40538782]
[1730316033610,0.2992,2662.7,2662.6,3.90011565]
[1730316035513,0.2992,2662.7,2662.6,0.14439565]
[1730316039496,4.05478,2662.7,2662.6,0.14439565]
[1730316039911,3.75573,2662.6,2662.4,0.7917]
[1730316040112,3.7558,2662.6,2662.2,0.8282]
[1730316040582,3.75593,2662.5,2662.2,0.8282]
[1730316042377,3.75612,2662.4,2662.0,0.77980324]
[1730316042606,7.51217,2662.4,2662.0,0.77980324]
[1730316042810,7.51217,2662.4,2662.0,1.23344656]
[1730316043013,3.75643,2662.1,2662.0,3.24e-06]
[1730316044403,3.75633,2662.2,2662.0,3.24e-06]
[1730316046108,3.75633,2662.2,2662.1,0.14491261]
[1730316050494,4.56433,2662.2,2662.1,0.14491261]
[1730316050894,3.75643,2662.1,2662.0,3.24e-06]
[1730316053117,3.75643,2662.1,2662.0,0.14077784]
[1730316053347,3.75643,2662.1,2662.0,3.24e-06]
[1730316054041,3.75643,2662.1,2662.0,0.14077784]
[1730316056321,3.75643,2662.1,2662.0,3.24e-06]
[1730316058950,4.55653,2662.1,2662.0,3.24e-06]
[1730316059126,7.55653,2662.1,2662.0,3.24e-06]
[1730316059963,8.12653,2662.1,2662.0,3.24e-06]
[1730316061672,7.55653,2662.1,2662.0,3.24e-06]
[1730316061833,4.55653,2662.1,2662.0,3.24e-06]
[1730316063167,7.55653,2662.1,2662.0,3.24e-06]
[1730316064728,11.19047894,2662.1,2662.0,3.24e-06]
[1730316069178,11.75047894,2662.1,2662.0,3.24e-06]
[1730316076559,11.75047894,2662.1,2660.9,3.75809]
[1730316076560,3.75798,2661.0,2660.9,0.7625]
[1730316077348,3.75798,2661.0,2660.9,0.8961577]
[1730316077552,3.75798,2661.0,2660.9,0.7625]
[1730316077780,3.75798,2661.0,2660.9,0.8961577]
[1730316079490,3.75798,2661.0,2660.9,0.7625]
[1730316079854,3.75798,2661.0,2660.9,0.8961577]
[1730316082400,3.75786,2661.1,2660.9,0.8961577]
[1730316082603,7.51578,2661.1,2660.9,0.8961577]
[1730316082773,3.75786,2661.1,2660.9,0.8961577]
[1730316082972,3.75794,2661.1,2660.9,0.7625]
[1730316083204,3.75771,2661.2,2660.9,0.7625]
[1730316083511,3.75798,2661.1,2661.0,0.13355949]
[1730316086080,3.75798,2661.1,2660.9,0.7625]
[1730316086269,3.75798,2661.1,2661.0,0.13361172]
[1730316086607,3.75761,2661.3,2661.0,0.13361172]
[1730316086796,3.75707,2661.7,2661.1,0.77]
[1730316087010,3.7577,2661.2,2661.1,0.90351109]
[1730316087577,3.7577,2661.2,2661.1,0.77]
[1730316087808,3.7577,2661.2,2661.1,0.90353902]
[1730316088045,3.75744,2661.4,2661.1,0.90353902]
[1730316088316,3.75756,2661.3,2661.1,1.36969692]
[1730316088518,3.75756,2661.3,2661.1,0.90353902]
[1730316089577,7.51524,2661.3,2661.1,0.90353902]
[1730316089785,3.7577,2661.2,2661.1,0.90353902]
[1730316090097,3.75756,2661.3,2661.1,0.90353902]
[1730316094024,3.75712,2661.7,2661.3,0.778]
[1730316094228,3.75679,2661.9,2661.4,4.53534]
[1730316094433,3.75659,2662.0,2661.5,0.778]
[1730316094729,3.75674,2661.9,2661.6,0.13301289]
[1730316095230,3.75686,2661.8,2661.6,0.13301289]
[1730316095586,3.13193156,2661.8,2661.6,0.13301289]
[1730316095988,3.75664,2662.0,2661.7,0.8112]
[1730316096231,3.75678,2661.9,2661.7,1.28134829]
[1730316096530,3.75678,2661.9,2661.8,0.13279473]
[1730316096686,3.75657,2662.0,2661.8,0.13279473]
[1730316096887,3.75657,2662.0,2661.7,0.8112]
[1730316097092,3.75657,2662.0,2661.8,0.13278744]
[1730316097305,3.75657,2662.0,2661.7,0.8112]
[1730316097595,3.75657,2662.0,2661.8,0.13278744]
[1730316097797,3.75657,2662.0,2661.7,0.8112]
[1730316098122,3.75657,2662.0,2661.8,0.13278744]
[1730316100333,3.75643,2662.1,2661.8,0.13278744]
[1730316100831,3.7563,2662.2,2661.7,5.10854054]
[1730316101046,3.7563,2662.2,2661.9,0.1326893]
[1730316101330,3.7563,2662.2,2662.0,0.13259116]
[1730316101633,3.7563,2662.2,2661.7,5.10854054]
[1730316101798,3.7563,2662.2,2662.1,0.13241286]
[1730316101996,3.7563,2662.2,2661.7,5.10854054]
[1730316102327,3.75596,2662.5,2662.2,0.7548]
[1730316102630,3.75581,2662.6,2662.2,0.7548]
[1730316102826,3.75581,2662.6,2662.3,0.13219963]
[1730316103190,4.87988,2662.7,2662.2,0.7548]
[1730316103392,3.75594,2662.5,2661.9,3.75669]
[1730316103728,3.75645,2662.1,2661.7,0.7548]
[1730316103934,7.51298,2662.1,2661.7,0.7548]
[1730316104093,3.75659,2662.0,2661.7,0.7548]
[1730316104796,4.51417,2662.2,2661.7,4.51179]
[1730316105000,3.75637,2662.2,2661.7,0.7548]
[1730316105233,3.75649,2662.1,2661.7,0.7548]
[1730316105435,3.75649,2662.1,2661.7,4.51178]
[1730316105935,3.75616,2662.3,2661.7,5.70205989]
[1730316105936,3.75632,2662.2,2661.7,5.70205989]
[1730316106101,3.75632,2662.2,2661.9,0.8252]
[1730316106102,3.75631,2662.2,2661.9,0.8252]
[1730316106298,3.75631,2662.2,2662.0,0.13247943]
[1730316110098,3.75615,2662.3,2662.0,0.13247943]
[1730316110402,3.75633,2662.2,2662.0,0.13247943]
[1730316112418,3.75643,2662.1,2662.0,0.13247943]
[1730316112632,4.52613,2662.1,2662.0,0.13247943]
[1730316113008,3.7567,2662.0,2661.6,0.8185]
[1730316113553,3.7567,2662.0,2661.7,0.13274716]
[1730316113732,0.8181,2662.3,2661.7,0.13274716]
[1730316114045,3.75645,2662.1,2661.7,3.88972716]
[1730316114342,3.75645,2662.1,2661.7,0.13274716]
[1730316115553,3.75599,2662.5,2662.1,0.7964]
[1730316115907,3.75599,2662.5,2662.1,4.55282]
[1730316116121,3.75572,2662.6,2662.2,0.13226862]
[1730316116320,0.2992,2662.7,2662.3,4.56737]
[1730316116637,0.2992,2662.7,2662.4,0.13206997]
[1730316116835,4.05485,2662.7,2662.4,0.13206997]
[1730316117024,0.2992,2662.7,2662.5,4.58108]
[1730316117460,0.2992,2662.7,2662.5,0.8253]
[1730316117624,0.2992,2662.7,2662.6,0.13186042]
[1730316120074,4.05478,2662.7,2662.6,0.13186042]
[1730316120890,12.31738,2662.7,2662.6,4.2e-07]
[1730316121051,3.75723,2661.6,2661.1,0.7912]
[1730316121378,3.75732,2661.5,2661.2,0.12016143]
[1730316121688,3.75735,2661.5,2661.2,0.12016143]
[1730316121849,3.75708,2661.7,2661.3,0.7628]
[1730316122184,3.75708,2661.7,2661.4,0.12004289]
[1730316122347,0.7516,2661.9,2661.4,0.12004289]
[1730316122348,3.75727,2661.5,2661.4,0.12004289]
[1730316123671,3.75713,2661.6,2661.4,0.12004289]
[1730316123849,3.75727,2661.5,2661.4,0.12004289]
[1730316124588,7.51392,2661.8,2661.4,0.12004289]
[1730316124802,3.75707,2661.7,2661.4,0.12004289]
[1730316124950,3.75707,2661.7,2661.4,0.57172207]
[1730316125945,7.51419,2661.7,2661.4,0.57172207]
[1730316126483,3.75707,2661.7,2661.4,0.57172207]
[1730316127148,3.7568,2661.9,2661.5,0.778]
[1730316127486,3.7568,2661.9,2661.5,1.28871321]
[1730316127691,3.7568,2661.9,2661.6,0.11988607]
[1730316128188,3.75695,2661.8,2661.6,0.11988607]
[1730316128394,3.7568,2661.9,2661.6,0.11988607]
[1730316128979,3.75652,2662.1,2661.7,0.8199]
[1730316129147,7.51303,2662.1,2661.7,0.8199]
[1730316129354,3.75651,2662.1,2661.8,0.11965622]
[1730316129553,7.51304,2662.1,2661.7,1.34066193]
[1730316129886,3.75657,2662.0,2661.9,0.11954491]
[1730316130050,3.75671,2661.9,2661.8,0.11964305]
[1730316130252,3.75671,2661.9,2661.7,0.8199]
[1730316130477,3.75671,2661.9,2661.8,0.11964305]
[1730316130982,3.75671,2661.9,2661.8,0.11971129]
[1730316131171,3.75671,2661.9,2661.7,0.8199]
[1730316131374,3.75671,2661.9,2661.8,0.11971129]
[1730316131769,3.75671,2661.9,2661.7,0.8199]
[1730316131990,3.75671,2661.9,2661.8,0.11971129]
[1730316132348,3.75671,2661.9,2661.7,0.8199]
[1730316132551,3.75671,2661.9,2661.8,0.11971129]
[1730316132752,3.75685,2661.8,2661.7,0.8199]
[1730316132995,3.75671,2661.9,2661.8,0.11971129]
[1730316133194,3.75685,2661.8,2661.7,0.93970944]
[1730316133496,3.75685,2661.8,2661.7,0.8199]
[1730316135797,3.75751,2661.4,2660.8,0.01]
[1730316136101,3.75763,2661.3,2660.8,4.235278]
[1730316136306,3.75763,2661.3,2660.9,0.11672579]
[1730316136464,3.7577,2661.2,2660.9,0.11672579]
[1730316136785,3.75784,2661.1,2661.0,0.11662876]
[1730316137198,3.75793,2661.1,2660.8,0.477018]
[1730316137398,3.75796,2661.1,2661.0,0.11662876]
[1730316137598,3.75798,2661.0,2660.9,0.11672697]
[1730316137888,3.75798,2661.0,2660.7,1.0018]
[1730316139078,3.75784,2661.1,2660.7,1.0018]
[1730316143402,3.75784,2661.1,2660.7,0.25]
[1730316143403,3.75819,2660.9,2660.7,0.25]
[1730316143573,3.75795,2661.1,2660.7,0.25]
[1730316144307,3.75782,2661.2,2660.8,0.8187]
[1730316144467,3.7579,2661.1,2660.8,0.8187]
[1730316145399,3.75782,2661.2,2660.8,0.8187]
[1730316145605,3.75798,2661.0,2660.8,0.8187]
[1730316146265,3.75785,2661.1,2660.8,0.8187]
[1730316147373,3.7582,2660.9,2660.7,0.25]
[1730316147575,4.56442,2661.0,2660.7,0.25]
[1730316147816,3.75815,2660.9,2660.7,0.25]
[1730316148309,3.75812,2660.9,2660.7,0.25]
[1730316149282,3.75786,2661.1,2660.7,0.25]
[1730316149479,3.75786,2661.1,2660.8,0.7902]
[1730316150081,3.75786,2661.1,2660.7,3.99854]
[1730316150312,3.75786,2661.1,2660.8,0.3759]
[1730316150635,3.75786,2661.1,2660.7,3.99854]
[1730316151294,3.75786,2661.1,2660.8,0.11318767]
[1730316153213,3.75771,2661.2,2660.9,0.7902]
[1730316153399,3.75765,2661.3,2660.9,0.90328945]
[1730316153637,3.75765,2661.3,2660.9,4.66137945]
[1730316153815,3.75765,2661.3,2660.9,5.5273764]
[1730316154378,7.5153,2661.3,2660.9,1.7692864]
[1730316154725,3.75765,2661.3,2660.9,5.5273364]
[1730316155015,3.75737,2661.5,2661.0,0.07515593]
[1730316155178,7.51473,2661.5,2661.2,0.7907]
[1730316155381,3.75736,2661.5,2661.2,0.7907]
[1730316155616,3.75736,2661.5,2661.3,0.11268731]
[1730316155786,3.75736,2661.5,2661.2,0.7907]
[1730316155983,7.51474,2661.5,2661.4,0.11258912]
[1730316156326,3.75771,2661.2,2660.8,4.53784]
[1730316156679,3.75771,2661.2,2660.9,0.1130801]
[1730316157286,3.75786,2661.1,2660.9,0.1130801]
[1730316159136,3.75798,2661.0,2660.9,0.1130801]
[1730316160309,3.75798,2661.0,2660.7,0.2402]
[1730316160646,3.75798,2661.0,2660.8,0.11317249]
[1730316162338,3.7578,2661.2,2660.8,0.11317249]
[1730316162645,3.7579,2661.1,2660.8,0.11317249]
[1730316163117,3.75784,2661.1,2660.8,0.11317249]
[1730316163440,3.75804,2661.0,2660.8,0.11317249]
[1730316164147,3.75802,2661.0,2660.8,0.11317249]
[1730316166638,7.51612,2661.0,2660.8,0.11317249]
[1730316166836,3.75812,2660.9,2660.8,0.11317249]
[1730316167258,3.75812,2660.9,2660.7,0.2402]
[1730316167438,3.75812,2660.9,2660.8,0.11317249]
[1730316168344,3.75806,2661.0,2660.8,0.11317249]
[1730316168521,3.75803,2661.0,2660.8,0.11317249]
[1730316169751,4.50922,2660.9,2660.8,0.11317249]
[1730316171716,3.75806,2661.0,2660.8,0.11317249]
[1730316172533,3.75812,2660.9,2660.8,0.11317249]
[1730316173470,4.51292,2660.9,2660.8,0.11317249]
[1730316175671,0.7548,2660.9,2660.8,0.11317249]
[1730316175970,4.51292,2660.9,2660.8,0.11317249]
[1730316178238,0.7548,2660.9,2660.8,0.11317249]
[1730316178432,3.75806,2661.0,2660.8,0.11317249]
[1730316178747,3.75812,2660.9,2660.8,0.11317249]
[1730316183081,4.59002,2660.9,2660.8,0.11317249]
[1730316184057,4.230937,2660.9,2660.8,0.11317249]
[1730316184459,3.75826,2660.8,2660.7,0.2402]
[1730316184980,5.38684074,2660.8,2660.7,0.2402]
[1730316190183,3.75826,2660.8,2660.7,0.2402]
[1730316190867,7.157277,2660.9,2660.7,0.2402]
[1730316191071,3.399037,2660.9,2660.7,0.2402]
[1730316192077,7.157297,2660.9,2660.7,0.2402]
[1730316192361,3.75826,2660.8,2660.7,0.2402]
[1730316192991,3.75808,2661.0,2660.7,0.2402]
[1730316193386,3.75804,2661.0,2660.7,0.2402]
[1730316194461,5.38638074,2661.2,2660.7,0.73328425]
[1730316194808,3.75799,2661.0,2660.7,0.2402]
[1730316195221,7.51605,2661.0,2660.7,0.2402]
[1730316195393,3.75799,2661.0,2660.7,0.2402]
[1730316196095,3.75799,2661.0,2660.8,0.10958349]
[1730316196484,0.58824195,2661.8,2661.2,0.7855]
[1730316196684,3.75707,2661.7,2661.2,0.7855]
[1730316196878,3.75723,2661.6,2661.3,0.10907516]
[1730316197203,3.75723,2661.6,2661.4,0.10897697]
[1730316197392,3.75723,2661.6,2661.2,0.7855]
[1730316197393,3.75707,2661.7,2661.2,1.24734811]
[1730316197592,3.75717,2661.6,2661.2,4.54318]